fUSD/lending_fUSD_20250521
["ID","MTS","AMOUNT","RATE_DAILY","PERIOD"]
[361791782,1747799438500,-158.07,0.00024907,2]
[361791783,1747799438510,-213.22427222,0.00025383,13]
[361791784,1747799438520,-213.22427222,0.00025866,14]
[361791785,1747799438529,-408.0,0.00026166,2]
[361791786,1747799438539,-1308.0,0.00026167,2]
[361791787,1747799438548,-944.748,0.00026167,2]
[361791788,1747799438558,-990.767,0.00026167,2]
[361791789,1747799438567,-1471.821,0.00026167,2]
[361791790,1747799438576,-588.822,0.00026167,2]
[361791791,1747799438586,-567.879,0.00026167,2]
[361791792,1747799438595,-1346.829,0.00026167,2]
[361791793,1747799438604,-156.879,0.00026167,2]
[361791794,1747799438614,-213.22427222,0.00026348,14]
[361791795,1747799438623,-213.22427222,0.00026831,15]
[361791796,1747799438632,-150.99,0.000269,2]
[361791797,1747799438642,-299.99,0.000269,12]
[361791798,1747799438651,-213.22427222,0.00027314,16]
[361791799,1747799438661,-213.22427222,0.00027797,17]
[361791800,1747799438670,-213.22427222,0.00028279,18]
[361791801,1747799438680,-213.22427222,0.00028762,19]
[361791802,1747799438690,-213.22427222,0.00029245,20]
[361791803,1747799438700,-213.22427222,0.00029728,21]
[361791804,1747799438710,-151.0,0.00030032,2]
[361791805,1747799438719,-207.4,0.00030032,2]
[361791806,1747799438729,-213.22427222,0.0003021,22]
[361791807,1747799438738,-150.0,0.00030216,2]
[361791808,1747799438747,-213.22427222,0.00030693,23]
[361791809,1747799438757,-200.0,0.00030969,2]
[361791810,1747799438766,-300.67,0.00031137,2]
[361791811,1747799438776,-213.22427222,0.00031176,24]
[361791812,1747799438786,-8328.34,0.00031253,2]
[361791813,1747799438795,-150.0,0.00031586,2]
[361791814,1747799438805,-213.22427222,0.00031659,25]
[361791815,1747799438814,-228.46,0.00031698,120]
[361791816,1747799438824,-500.0,0.00031735,7]
[361791817,1747799438833,-154.11,0.00031939,2]
[361791818,1747799438842,-154.11,0.00031962,2]
[361791819,1747799438852,-154.11,0.00031985,2]
[361791820,1747799438861,-154.11,0.00032008,2]
[361791821,1747799438871,-154.11,0.0003203,2]
[361791822,1747799438881,-154.11,0.00032053,2]
[361791823,1747799438891,-154.11,0.00032076,2]
[361791824,1747799438900,-154.11,0.00032099,2]
[361791825,1747799438910,-213.22427222,0.00032141,26]
[361791826,1747799438919,-500.0,0.00032242,7]
[361791827,1747799438929,-205.01,0.00032498,2]
[361791828,1747799438939,-500.0,0.00032599,7]
[361791829,1747799438949,-213.22427222,0.00032624,27]
[361791830,1747799438958,-500.74158499,0.00032916,7]
[361791831,1747799438967,-150.0,0.00032955,2]
[361791832,1747799438977,-213.22427222,0.00033107,28]
[361791833,1747799438986,-12500.0,0.00033151,5]
[361791834,1747799438995,-9646.71231233,0.00033151,5]
[361791835,1747799439009,-369.50775994,0.00033151,5]
[361791836,1747799439280,-876.49937008,0.00033151,5]
[361791837,1747799439316,-424.538785,0.00033151,5]
[361791838,1747799439328,-201.62117763,0.00033151,5]
[361791839,1747799439338,-62.07882267,0.00033339,7]
[361791840,1747799439350,-437.92117733,0.00033339,7]
[361791841,1747799439359,-235.25950292,0.00033405,2]
[361791842,1747799439371,-764.74049708,0.00033405,2]
[361791843,1747799439382,-500.0,0.00033405,2]
[361791844,1747799439393,-500.0,0.00033405,2]
[361791845,1747799439403,-500.0,0.00033405,2]
[361791846,1747799439415,-500.0,0.00033405,2]
[361791847,1747799439425,-500.0,0.00033405,2]
[361791848,1747799439434,-500.0,0.00033405,2]
[361791849,1747799439444,-500.0,0.00033405,2]
[361791850,1747799439453,-500.0,0.00033405,2]
[361791851,1747799439462,-500.0,0.00033405,2]
[361791852,1747799439473,-500.0,0.00033405,2]
[361791853,1747799439482,-500.0,0.00033405,2]
[361791854,1747799439491,-500.0,0.00033405,2]
[361791855,1747799439501,-500.0,0.00033405,2]
[361791856,1747799439510,-500.0,0.00033405,2]
[361791857,1747799439519,-500.0,0.00033405,2]
[361791858,1747799439528,-500.0,0.00033405,2]
[361791859,1747799439538,-500.0,0.00033405,2]
[361791860,1747799439547,-500.0,0.00033405,2]
[361791861,1747799439556,-116.56596419,0.00033405,2]
[361791862,1747799439638,-383.43403581,0.00033405,2]
[361791863,1747799439648,-500.0,0.00033405,2]
[361791864,1747799439657,-500.0,0.00033405,2]
[361791865,1747799439666,-246.39834674,0.00033405,2]
[361791866,1747799439679,-253.60165326,0.00033405,2]
[361791867,1747799439689,-336.45973226,0.00033405,2]
[361791878,1747799441800,-163.54026774,0.00033405,2]
[361791879,1747799441810,-500.0,0.00033405,2]
[361791880,1747799441820,-500.0,0.00033405,2]
[361791881,1747799441831,-500.0,0.00033405,2]
[361791882,1747799441842,-500.0,0.00033405,2]
[361791883,1747799441852,-256.24300612,0.00033405,2]
[361791884,1747799441933,-243.75699388,0.00033405,2]
[361791885,1747799441943,-500.0,0.00033405,2]
[361791886,1747799441953,-500.0,0.00033405,2]
[361791887,1747799441963,-500.0,0.00033405,2]
[361791888,1747799441972,-500.0,0.00033405,2]
[361791889,1747799441982,-500.0,0.00033405,2]
[361791890,1747799441992,-500.0,0.00033405,2]
[361791891,1747799442002,-500.0,0.00033405,2]
[361791892,1747799442013,-500.0,0.00033405,2]
[361791893,1747799442022,-500.0,0.00033405,2]
[361791894,1747799442032,-500.0,0.00033405,2]
[361791895,1747799442042,-500.0,0.00033405,2]
[361791896,1747799442052,-500.0,0.00033405,2]
[361791897,1747799442061,-500.0,0.00033405,2]
[361791898,1747799442071,-500.0,0.00033405,2]
[361791899,1747799442081,-500.0,0.00033405,2]
[361791900,1747799442090,-500.0,0.00033405,2]
[361791901,1747799442100,-500.0,0.00033405,2]
[361791902,1747799442109,-500.0,0.00033405,2]
[361791903,1747799442122,-500.0,0.00033405,2]
[361791904,1747799442131,-500.0,0.00033405,2]
[361791905,1747799442141,-747.0,0.00033405,2]
[361791906,1747799442151,-157.34,0.000335,31]
[361791907,1747799442161,-213.22427222,0.0003359,29]
[361791908,1747799442171,-1439.73013258,0.00033607,2]
[361791909,1747799442181,-683.75,0.00033707,2]
[361791910,1747799442191,-500.0,0.00033849,7]
[361791911,1747799442201,-500.0,0.00033849,7]
[361791912,1747799442212,-500.0,0.00033849,7]
[361791913,1747799442221,-500.0,0.00033849,7]
[361791914,1747799442231,-500.0,0.00033849,7]
[361791915,1747799442240,-500.0,0.00033849,7]
[361791916,1747799442250,-500.0,0.00033849,7]
[361791917,1747799442259,-361.09943006,0.00033849,7]
[361791918,1747799442269,-500.0,0.00033849,7]
[361791919,1747799442278,-500.0,0.00033849,7]
[361791920,1747799442288,-500.0,0.00033849,7]
[361791921,1747799442298,-500.0,0.00033849,7]
[361791922,1747799442308,-500.0,0.00033849,7]
[361791923,1747799442317,-500.0,0.00033849,7]
[361791924,1747799442327,-378.48290951,0.00033849,7]
[361791925,1747799442337,-1439.73013249,0.0003385,2]
[361791926,1747799442346,-300.01,0.00033927,2]
[361791927,1747799442356,-500.0,0.00033935,29]
[361791928,1747799442365,-500.0,0.00033962,29]
[361791929,1747799442375,-500.0,0.0003399,29]
[361791930,1747799442385,-500.0,0.00034017,29]
[361791931,1747799442394,-500.0,0.0003403,7]
[361791932,1747799442403,-500.0,0.00034045,29]
[361791933,1747799442413,-178.21752831,0.00034055,30]
[361791934,1747799442423,-167.95462307,0.00034055,30]
[361791935,1747799442432,-500.0,0.00034072,29]
[361791936,1747799442442,-213.22427222,0.00034072,30]
[361791937,1747799442452,-1439.73013249,0.00034092,2]
[361791938,1747799442461,-500.0,0.00034099,29]
[361791939,1747799442471,-500.0,0.00034127,29]
[361791940,1747799442482,-500.0,0.00034154,29]
[361791941,1747799442492,-500.0,0.00034182,29]
[361791942,1747799442502,-500.0,0.00034209,29]
[361791943,1747799442512,-500.0,0.00034236,29]
[361791944,1747799442522,-270.755,0.00034246,2]
[361791945,1747799442532,-232.49991933,0.00034264,29]
[361791946,1747799442542,-150.0,0.00034325,2]
[361791947,1747799442552,-1439.73013249,0.00034335,2]
[361791948,1747799442561,-185.56,0.00034407,2]
[361791949,1747799442572,-636.24164524,0.00034521,39]
[361791950,1747799442607,-254.60499999,0.00034521,39]
[361791951,1747799442619,-13.67735477,0.00034521,39]
[361791952,1747799442628,-702.65618,0.00034546,4]
[361791953,1747799442638,-213.22427222,0.00034555,31]
[361791954,1747799442648,-1439.73013249,0.00034577,2]
[361791955,1747799442658,-509.90794166,0.00034596,7]
[361791956,1747799442667,-238.0,0.000346,2]
[361791957,1747799442677,-326.04268483,0.000346,2]
[361791983,1747799443680,-464.95731517,0.000346,2]
[361791985,1747799443690,-208.0,0.00034612,2]
[361791986,1747799443699,-500.0,0.00034688,7]
[361791987,1747799443709,-205.01,0.00034762,2]
[361791989,1747799443719,-1439.73013249,0.0003482,2]
[361791991,1747799443729,-1000.0,0.00035,5]
[361791993,1747799443738,-1000.0,0.00035,5]
[361791995,1747799443747,-618.62,0.00035,5]
[361791996,1747799443758,-33815.54610787,0.00035,2]
[361791997,1747799443768,-213.22427222,0.00035038,32]
[361791998,1747799443777,-788.71263405,0.00035062,2]
[361791999,1747799443789,-651.01749844,0.00035062,2]
[361792000,1747799443799,-1773.0,0.000352,7]
[361792001,1747799443809,-1439.73013249,0.00035305,2]
[361792002,1747799443818,-8.48111318,0.00035342,2]
[361792003,1747799443830,-141.92888682,0.00035342,2]
[361792004,1747799443840,-150.0,0.00035342,2]
[361792005,1747799443850,-15714.79132779,0.000354,8]
[361792006,1747799443904,-13523.13983609,0.000354,8]
[361792007,1747799444041,-2990.5,0.000354,8]
[361792008,1747799444054,-1186.48845498,0.000354,8]
[361792009,1747799444066,-6702.04815493,0.000354,8]
[361792010,1747799444086,-673.9999555,0.000354,8]
[361792011,1747799444152,-672.54591315,0.000354,8]
[361792012,1747799444165,-303.88410612,0.000354,8]
[361792013,1747799444177,-2327.29573712,0.000354,8]
[361792014,1747799444239,-3040.69466733,0.000354,8]
[361792015,1747799444250,-809.69404754,0.000354,8]
[361792016,1747799444262,-19013.20664102,0.000354,8]
[361792019,1747799446264,-1223.6681103,0.000354,8]
[361792020,1747799446372,-1570.6849749,0.000354,8]
[361792021,1747799446384,-22593.88195897,0.000354,8]
[361792022,1747799446393,-1102.5607,0.00035405,2]
[361792023,1747799446403,-438.8069,0.00035416,2]
[361792024,1747799446413,-862.8056,0.00035416,2]
[361792025,1747799446423,-1000.0,0.00035416,2]
[361792026,1747799446432,-500.0,0.00035438,7]
[361792027,1747799446441,-920.67600291,0.0003549,2]
[361792028,1747799446450,-163.70482419,0.00035496,15]
[361792029,1747799446460,-170.18673362,0.00035515,2]
[361792030,1747799446469,-1000.0,0.00035516,2]
[361792031,1747799446479,-500.0,0.00035516,2]
[361792032,1747799446488,-3442.09635191,0.00035516,2]
[361792033,1747799446499,-1849.10000001,0.00035516,2]
[361792034,1747799446510,-1000.0,0.00035516,2]
[361792035,1747799446521,-507.91,0.00035516,2]
[361792036,1747799446536,-21455.27737614,0.00035516,2]
[361792065,1747800631435,-158.07,0.00013699,2]
[361792066,1747800631951,-550.35289467,0.00018,2]
[361792067,1747800631961,-302.18,0.00018821,2]
[361792068,1747800631972,-302.33,0.00019,2]
[361792069,1747800631982,-305.07,0.00019034,2]
[361792070,1747800631992,-304.3,0.00019526,2]
[361792071,1747800632002,-300.41,0.00019723,2]
[361792072,1747800632012,-161.1458133,0.00020579,2]
[361792073,1747800632132,-140.3541867,0.00020579,2]
[361792074,1747800632143,-302.87,0.00020579,2]
[361792075,1747800632154,-303.06,0.00022067,2]
[361792076,1747800632164,-304.25,0.00022067,2]
[361792077,1747800632175,-305.68,0.00023572,2]
[361792078,1747800632186,-944.07499962,0.00024057,2]
[361792079,1747800632196,-3055.85655883,0.00027397,10]
[361792080,1747800632209,-3314.41344117,0.00027397,10]
[361792081,1747800632220,-158.07,0.00027397,2]
[361792082,1747800632230,-213.22427222,0.000279,18]
[361792083,1747800632241,-187.75932686,0.00029001,2]
[361792089,1747800637648,-19.64067314,0.00029001,2]
[361792090,1747800637659,-213.22427222,0.00029471,21]
[361792091,1747800637671,-5000.0,0.0003,30]
[361792092,1747800637680,-500.0,0.00030137,60]
[361792093,1747800637690,-207.4,0.0003037,2]
[361792094,1747800637699,-213.22427222,0.00031043,24]
[361792095,1747800637710,-500.0,0.00031461,7]
[361792097,1747800637720,-206.0,0.00031612,2]
[361792098,1747800637730,-500.0,0.00031629,7]
[361792100,1747800637739,-500.0,0.00032201,7]
[361792102,1747800637749,-231.67,0.00032326,2]
[361792104,1747800637759,-201.14,0.00032607,2]
[361792107,1747800637769,-213.22427222,0.00032614,27]
[361792109,1747800637780,-352.52,0.00032845,2]
[361792110,1747800637791,-71.41324365,0.00032958,2]
[361792111,1747800637815,-3665.54793744,0.00032958,2]
[361792114,1747800639490,-1765.93881891,0.00032958,2]
[361792115,1747800639502,-166.73,0.00032987,120]
[361792116,1747800639514,-150.0,0.00033,14]
[361792117,1747800639525,-466.39007345,0.00033129,5]
[361792118,1747800639853,-10695.7815825,0.00033129,5]
[361792124,1747800642435,-1.42309076,0.00033129,5]
[361792125,1747800642679,-1814.85926529,0.00033129,5]
[361792126,1747800642689,-7461.01318791,0.00033149,5]
[361792156,1747800645353,-444.98692003,0.00033149,5]
[361792157,1747800645407,-2766.80359822,0.00033149,5]
[361792158,1747800645600,-1742.43301277,0.00033149,5]
[361792159,1747800645612,-563.21729307,0.00033149,5]
[361792160,1747800645621,-500.0,0.00033195,7]
[361792161,1747800645631,-1734.0,0.000334,7]
[361792162,1747800645640,-160.0256809,0.00033423,5]
[361792163,1747800645652,-5341.068,0.00033423,5]
[361792164,1747800645679,-7179.78345936,0.00033423,5]
[361792195,1747801555150,599.84197639,6.94e-05,2]
[361792196,1747801568719,196.674963,7.945e-05,2]
[361792198,1747801745446,-5111.81397086,0.000115,2]
[361792206,1747801831564,-106.6775966,0.000115,2]
[361792207,1747801831575,-2273.54193311,0.00012,2]
[361792208,1747801831675,-1140.47350813,0.00012,2]
[361792209,1747801831734,-3200.09805174,0.00012,2]
[361792210,1747801831746,-2095.55944519,0.00012,2]
[361792211,1747801831847,-6415.8236766,0.00012,2]
[361792253,1747801837593,-3417.54088736,0.00012,2]
[361792254,1747801837642,-658.47843359,0.00012,2]
[361792255,1747801837653,-797.43467363,0.00012,2]
[361792256,1747801837665,-3319.63338521,0.00012,2]
[361792257,1747801837676,-2889.07462966,0.00012,2]
[361792258,1747801837688,-15687.408696,0.00012,2]
[361792262,1747801837879,-5057.220654,0.00012,2]
[361792263,1747801837894,-43765.51349864,0.00012,2]
[361792264,1747801837903,-48590.30319882,0.00012,2]
[361792265,1747801837915,-3131.37520079,0.00012,2]
[361792267,1747801839858,-3111.32892012,0.00012,2]
[361792268,1747801839871,-65979.9869642,0.00012,2]
[361792269,1747801840022,-888.30583703,0.00012,2]
[361792284,1747801842898,-5900.11867625,0.00012,2]
[361792286,1747801842910,-828.23853552,0.00012,2]
[361792288,1747801842922,-2400.0,0.00012,2]
[361792289,1747801842935,-633.2,0.00012,2]
[361792290,1747801842948,-4356.55693722,0.00012,2]
[361792301,1747801845523,-18403.5294,0.00012,2]
[361792302,1747801845631,-1490.42905445,0.00012,2]
[361792303,1747801845689,-945.0,0.00012,2]
[361792304,1747801845746,-844.25682061,0.00012,2]
[361792305,1747801845856,-1982.14419011,0.00012,2]
[361792306,1747801845867,-748.719994,0.00012,2]
[361792307,1747801845880,-2814.12848213,0.00012,2]
[361792310,1747802449583,632.99,0.00027397,120]
[361792311,1747802813880,-362.65887603,0.00011517,2]
[361792312,1747802834846,-350.07784429,0.00011517,2]
[361792313,1747802834867,-174.21003561,0.000119,2]
[361792314,1747802834889,-171.13375777,0.00011999,2]
[361792328,1747803031940,-23025.00931174,0.00012,2]
[361792329,1747803031954,-517.70502891,0.00012,2]
[361792330,1747803032527,-2856.75213861,0.00012,2]
[361792331,1747803032538,-157.65497373,0.00012,2]
[361792332,1747803032548,-297.91561651,0.000125,2]
[361792333,1747803032559,-250.0,0.00012669,2]
[361792334,1747803032568,-150.0,0.00012999,2]
[361792335,1747803032578,-3593.98457294,0.00013,2]
[361792336,1747803032603,-693.79132899,0.00013,2]
[361792337,1747803032612,-155.22489187,0.00013,2]
[361792338,1747803032629,-1046.65176022,0.00013,2]
[361792339,1747803032641,-348.75448312,0.00013,2]
[361792340,1747803032652,-2055.89035224,0.0001305,2]
[361792341,1747803032663,-250.0,0.000132,2]
[361792342,1747803032673,-1000.0,0.00013367,2]
[361792343,1747803032683,-8002.7027294,0.00013368,2]
[361792344,1747803032693,-158.07,0.00013699,2]
[361792345,1747803032703,-213.22427222,0.000139,2]
[361792346,1747803032713,-1129.80145976,0.0001999,2]
[361792347,1747803032724,-1091.0,0.0002,7]
[361792348,1747803032733,-174.2100356,0.00020031,2]
[361792349,1747803032743,-299.99,0.00020951,7]
[361792350,1747803032753,-162.82,0.000212,2]
[361792351,1747803032763,-213.22427222,0.00021567,5]
[361792352,1747803032773,-525.26810546,0.00024441,2]
[361792353,1747803032783,-2923.4,0.00025786,2]
[361792354,1747803032792,-200.0,0.00027397,2]
[361792355,1747803032805,-5000.0,0.00028,30]
[361792356,1747803032820,-174.2100356,0.00028162,2]
[361792357,1747803032831,-799.0,0.00028262,2]
[361792358,1747803032842,-391.888,0.00028262,2]
[361792359,1747803032852,-554.0,0.00028262,2]
[361792360,1747803032861,-269.796,0.00028262,2]
[361792361,1747803032874,-150.212,0.00028262,2]
[361792362,1747803032884,-274.452,0.00028262,2]
[361792363,1747803032893,-192.836,0.00028262,2]
[361792364,1747803032903,-158.07,0.0002911,2]
[361792365,1747803032913,-304.11,0.0002912,2]
[361792366,1747803032922,-304.01,0.0002912,2]
[361792367,1747803032933,-305.49,0.0002912,2]
[361792368,1747803032943,-301.34,0.0002912,2]
[361792369,1747803032953,-302.24,0.0002912,2]
[361792370,1747803032963,-305.38,0.00029165,2]
[361792371,1747803032973,-305.34,0.00029165,2]
[361792372,1747803032983,-303.58,0.00029165,2]
[361792373,1747803032992,-304.67,0.00029167,2]
[361792374,1747803033002,-304.35,0.00029167,2]
[361792375,1747803033011,-303.93,0.00029167,2]
[361792376,1747803033022,-304.36,0.00029167,2]
[361792377,1747803033032,-303.68,0.00029167,2]
[361792378,1747803033043,-303.93,0.00029167,2]
[361792379,1747803033053,-300.18,0.00029167,2]
[361792380,1747803033062,-301.46,0.00029184,2]
[361792381,1747803033073,-301.55,0.00029184,2]
[361792382,1747803033083,-302.59,0.00029184,2]
[361792383,1747803033093,-301.92,0.00029214,2]
[361792384,1747803033103,-301.87,0.00029214,2]
[361792385,1747803033113,-304.09,0.00029214,2]
[361792386,1747803033125,-300.57,0.00029214,2]
[361792387,1747803033136,-305.6,0.00029252,2]
[361792388,1747803033147,-300.58,0.00029252,2]
[361792389,1747803033158,-301.2,0.00029262,2]
[361792390,1747803033169,-303.21,0.00029262,2]
[361792391,1747803033179,-301.01,0.00029262,2]
[361792392,1747803033190,-305.96,0.00029262,2]
[361792393,1747803033200,-304.29,0.00029262,2]
[361792394,1747803033211,-302.6,0.00029262,2]
[361792395,1747803033221,-300.69,0.00029262,2]
[361792396,1747803033232,-305.35,0.00029262,2]
[361792397,1747803033243,-281.47,0.00029327,2]
[361792398,1747803033253,-500.0,0.00029341,2]
[361792399,1747803033263,-211.0,0.0002977,2]
[361792400,1747803033274,-187.95,0.00029791,2]
[361792401,1747803033285,-323.67,0.00029941,120]
[361792402,1747803033296,-162.04487067,0.0003,14]
[361792403,1747803033306,-3334.55433205,0.0003,3]
[361792404,1747803033317,-5000.0,0.0003,15]
[361792405,1747803033329,-10000.0,0.0003,2]
[361792406,1747803033340,-1000.0,0.00030185,2]
[361792407,1747803033350,-213.22427222,0.00030233,22]
[361792408,1747803033361,-211.0,0.0003051,2]
[361792409,1747803033372,-603.00721187,0.0003063,7]
[361792410,1747803033384,-4000.0,0.00030661,2]
[361792411,1747803033394,-500.0,0.00030678,7]
[361792412,1747803033407,-196.96,0.00030967,2]
[361792413,1747803033418,-196.96,0.00031122,2]
[361792414,1747803033429,-211.0,0.0003126,2]
[361792415,1747803033440,-150.0,0.00031262,2]
[361792416,1747803033451,-8137.1,0.00031577,2]
[361792417,1747803033463,-281.47,0.00031591,2]
[361792418,1747803033474,-1112.62,0.00031612,120]
[361792419,1747803033484,-625.28,0.00031628,2]
[361792420,1747803033494,-168.83,0.00031636,2]
[361792421,1747803033505,-293.54,0.00031673,2]
[361792422,1747803033515,-264.53,0.000317,120]
[361792423,1747803033527,-211.0,0.0003201,2]
[361792424,1747803033538,-805.46,0.00032282,2]
[361792425,1747803033548,-211.0,0.0003276,2]
[361792426,1747803033559,-1678.28,0.00033,7]
[361792427,1747803033570,-935.0,0.00033,9]
[361792428,1747803033581,-200.0,0.00033151,2]
[361792429,1747803033591,-151.0,0.00033422,5]
[361792430,1747803033600,-151.0,0.00033422,5]
[361792431,1747803033611,-207.4,0.00033422,5]
[361792432,1747803033622,-668.65185757,0.00033422,5]
[361792433,1747803033636,-158.9323137,0.00033422,5]
[361792434,1747803033647,-19999.999999,0.00033423,10]
[361792435,1747803033662,-300.48,0.00033474,2]
[361792436,1747803033673,-303.95,0.00033474,2]
[361792437,1747803033684,-303.45,0.00033474,2]
[361792438,1747803033694,-302.6,0.00033474,2]
[361792439,1747803033704,-303.61,0.00033474,2]
[361792440,1747803033715,-301.02,0.00033474,2]
[361792441,1747803033725,-300.54,0.00033474,2]
[361792442,1747803033736,-304.63,0.00033474,2]
[361792443,1747803033747,-302.14,0.00033474,2]
[361792444,1747803033757,-305.84,0.00033474,2]
[361792445,1747803033768,-155.0,0.00033474,2]
[361792446,1747803033779,-157.33,0.000335,31]
[361792447,1747803033790,-211.0,0.0003351,2]
[361792448,1747803033801,-178.72,0.00033589,2]
[361792449,1747803033811,-500.0,0.00033597,7]
[361792450,1747803033822,-178.72,0.00033673,2]
[361792451,1747803033833,-323.67,0.00033684,120]
[361792452,1747803033844,-178.72,0.00033757,2]
[361792453,1747803033854,-281.47,0.00033855,2]
[361792454,1747803033866,-1000.0,0.00033958,2]
[361792455,1747803033877,-500.0,0.00034,5]
[361792456,1747803033888,-500.0,0.00034,5]
[361792457,1747803033898,-500.0,0.00034,5]
[361792458,1747803033908,-836.104,0.00034,5]
[361792459,1747803033919,-959.0,0.00034,6]
[361792460,1747803033929,-155.0,0.00034022,2]
[361792461,1747803033940,-206.0,0.00034075,2]
[361792462,1747803033950,-723.619,0.000341,37]
[361792463,1747803033960,-304.26,0.00034129,2]
[361792464,1747803033971,-300.15,0.00034129,2]
[361792465,1747803033981,-304.68,0.00034129,2]
[361792466,1747803033993,-300.06,0.00034129,2]
[361792467,1747803034003,-301.57,0.00034129,2]
[361792468,1747803034014,-304.96,0.00034129,2]
[361792469,1747803034024,-81.1068224,0.00034129,2]
[361792470,1747803034040,-220.3631776,0.00034129,2]
[361792471,1747803034050,-301.38,0.00034129,2]
[361792472,1747803034061,-211.0,0.0003426,2]
[361792473,1747803034071,-563.0,0.00034264,2]
[361792474,1747803034082,-563.0,0.00034291,2]
[361792475,1747803034092,-563.0,0.00034319,2]
[361792476,1747803034102,-563.0,0.00034346,2]
[361792477,1747803034113,-563.0,0.00034374,2]
[361792478,1747803034123,-563.0,0.00034401,2]
[361792479,1747803034133,-563.0,0.00034428,2]
[361792480,1747803034144,-1400.12478949,0.00034438,2]
[361792481,1747803034155,-563.0,0.00034456,2]
[361792482,1747803034166,-563.0,0.00034483,2]
[361792483,1747803034176,-563.0,0.00034511,2]
[361792484,1747803034186,-300.04,0.00034521,2]
[361792485,1747803034196,-164.47,0.00034521,2]
[361792486,1747803034207,-353.3,0.00034521,2]
[361792487,1747803034217,-563.0,0.00034538,2]
[361792488,1747803034227,-863.793752,0.00034546,4]
[361792489,1747803034237,-563.0,0.00034565,2]
[361792490,1747803034247,-1000.0,0.00034569,2]
[361792491,1747803034257,-155.0,0.0003457,2]
[361792492,1747803034267,-637.1203615,0.00034575,34]
[361792493,1747803034278,-1400.12478943,0.00034588,2]
[361792494,1747803034287,-563.0,0.00034593,2]
[361792495,1747803034297,-7424.30239438,0.000346,7]
[361792496,1747803034329,-892.94906361,0.000346,7]
[361792497,1747803034345,-276.65889505,0.000346,7]
[361792498,1747803034357,-578.0878976,0.000346,7]
[361792499,1747803034383,-1115.02435272,0.000346,7]
[361792500,1747803034434,-77.26907082,0.000346,7]
[361792501,1747803034446,-5944.89825778,0.000346,7]
[361792502,1747803034478,-673.19211001,0.000346,7]
[361792503,1747803034490,-2467.07294958,0.000346,7]
[361792504,1747803034499,-151.0,0.000346,7]
[361792505,1747803034509,-151.0,0.000346,7]
[361792506,1747803034519,-151.0,0.000346,7]
[361792507,1747803034528,-151.0,0.000346,7]
[361792508,1747803034538,-151.0,0.000346,7]
[361792509,1747803034547,-151.0,0.000346,7]
[361792510,1747803034557,-151.0,0.000346,7]
[361792511,1747803034570,-274.980547,0.000346,7]
[361792512,1747803034580,-151.0,0.0003462,7]
[361792513,1747803034590,-151.0,0.0003462,7]
[361792514,1747803034600,-151.0,0.0003462,7]
[361792515,1747803034611,-549.696307,0.0003462,7]
[361792516,1747803034621,-549.696307,0.0003462,7]
[361792517,1747803034632,-563.0,0.0003462,2]
[361792518,1747803034643,-563.0,0.00034648,2]
[361792519,1747803034653,-172.04801024,0.00034659,2]
[361792520,1747803034663,-1000.0,0.00034659,2]
[361792521,1747803034674,-1708.34003261,0.00034659,2]
[361792522,1747803034686,-791.65996739,0.00034659,2]
[361792523,1747803034696,-813.27533828,0.0003466,2]